fUST/lending_fUST_20250605
["ID","MTS","AMOUNT","RATE_DAILY","PERIOD"]
[364460287,1749107440705,-430.0,0.00018033,2]
[364460289,1749107440716,-440.0,0.00018033,2]
[364460291,1749107440724,-440.0,0.00018033,2]
[364460293,1749107440733,-440.0,0.00018033,2]
[364460295,1749107440742,-440.0,0.00018033,2]
[364460297,1749107440753,-440.0,0.00018033,2]
[364460299,1749107440761,-440.0,0.00018033,2]
[364460301,1749107440770,-432.32841345,0.00018033,2]
[364460303,1749107440779,-440.0,0.00018033,2]
[364460305,1749107440787,-430.0,0.00018033,2]
[364460307,1749107440795,-430.0,0.00018033,2]
[364460309,1749107440804,-440.0,0.00018033,2]
[364460311,1749107440813,-773.78,0.00018033,2]
[364460313,1749107440822,-773.78,0.00018033,2]
[364460315,1749107440831,-430.94285413,0.00018033,2]
[364460317,1749107440839,-440.0,0.00018033,2]
[364460319,1749107440849,-440.0,0.00018033,2]
[364460321,1749107440857,-440.0,0.00018033,2]
[364460323,1749107440866,-440.0,0.00018033,2]
[364460325,1749107440874,-440.0,0.00018033,2]
[364460327,1749107440883,-438.15976073,0.00018033,2]
[364460329,1749107440892,-494.70773844,0.00018033,2]
[364460331,1749107440900,-440.0,0.00018033,2]
[364460333,1749107440908,-430.0,0.00018033,2]
[364460335,1749107440917,-500.0,0.00018033,2]
[364460337,1749107440928,-500.0,0.00018033,2]
[364460339,1749107440936,-431.50682603,0.00018033,2]
[364460341,1749107440945,-500.0,0.00018033,2]
[364460342,1749107440954,-430.0,0.00018033,2]
[364460344,1749107440962,-440.0,0.00018033,2]
[364460347,1749107440971,-440.0,0.00018033,2]
[364460349,1749107440979,-430.0,0.00018033,2]
[364460351,1749107440987,-440.0,0.00018033,2]
[364460352,1749107440995,-432.83975647,0.00018033,2]
[364460354,1749107441002,-151.0,0.00018033,2]
[364460355,1749107441010,-432.17771895,0.00018033,2]
[364460356,1749107441018,-151.0,0.00018033,2]
[364460357,1749107441026,-430.0,0.00018033,2]
[364460358,1749107441033,-504.77291637,0.00018033,2]
[364460359,1749107441040,-151.0,0.00018033,2]
[364460360,1749107441048,-432.57969694,0.00018033,2]
[364460361,1749107441057,-430.0,0.00018033,2]
[364460362,1749107441067,-151.0,0.00018033,2]
[364460363,1749107441076,-432.91299315,0.00018033,2]
[364460364,1749107441085,-430.0,0.00018033,2]
[364460365,1749107441095,-440.0,0.00018033,2]
[364460366,1749107441104,-440.0,0.00018033,2]
[364460367,1749107441115,-153.545985,0.00018033,2]
[364460368,1749107441125,-430.0,0.00018033,2]
[364460369,1749107441135,-430.0,0.00018033,2]
[364460370,1749107441145,-440.0,0.00018033,2]
[364460371,1749107441155,-453.10080596,0.00018033,2]
[364460372,1749107441166,-430.0,0.00018033,2]
[364460373,1749107441177,-440.0,0.00018033,2]
[364460374,1749107441186,-151.0,0.00018033,2]
[364460375,1749107441196,-437.64617155,0.00018033,2]
[364460376,1749107441206,-430.0,0.00018033,2]
[364460378,1749107441216,-440.0,0.00018033,2]
[364460380,1749107441225,-500.0,0.00018034,2]
[364460382,1749107441235,-500.0,0.00018034,2]
[364460384,1749107441245,-500.0,0.00018034,2]
[364460386,1749107441255,-500.0,0.00018034,2]
[364460388,1749107441264,-500.0,0.00018034,2]
[364460390,1749107441273,-500.0,0.00018034,2]
[364460392,1749107441283,-151.0,0.00018034,2]
[364460394,1749107441292,-773.78,0.00018034,2]
[364460396,1749107441302,-773.78,0.00018034,2]
[364460398,1749107441311,-151.0,0.00018034,2]
[364460400,1749107441321,-500.0,0.00018034,2]
[364460402,1749107441330,-500.0,0.00018034,2]
[364460404,1749107441340,-500.0,0.00018034,2]
[364460406,1749107441349,-440.0,0.00018035,2]
[364460408,1749107441358,-206.78080013,0.00018035,2]
[364460410,1749107441368,-420.0,0.00018035,2]
[364460412,1749107441377,-440.0,0.00018035,2]
[364460414,1749107441386,-446.07446011,0.00018035,2]
[364460416,1749107441396,-440.0,0.00018035,2]
[364460418,1749107441405,-440.0,0.00018035,2]
[364460420,1749107441416,-440.0,0.00018035,2]
[364460422,1749107441425,-440.0,0.00018035,2]
[364460424,1749107441434,-430.0,0.00018035,2]
[364460426,1749107441444,-440.0,0.00018035,2]
[364460428,1749107441454,-440.0,0.00018035,2]
[364460430,1749107441465,-450.05397824,0.00018035,2]
[364460432,1749107441474,-440.0,0.00018035,2]
[364460434,1749107441483,-431.2562979,0.00018035,2]
[364460436,1749107441492,-440.0,0.00018035,2]
[364460438,1749107441501,-490.0,0.00018035,2]
[364460440,1749107441510,-430.0,0.00018035,2]
[364460442,1749107441520,-430.0,0.00018035,2]
[364460444,1749107441529,-430.0,0.00018035,2]
[364460446,1749107441539,-430.0,0.00018035,2]
[364460448,1749107441549,-430.0,0.00018035,2]
[364460450,1749107441558,-430.0,0.00018035,2]
[364460451,1749107441567,-430.0,0.00018035,2]
[364460453,1749107441577,-430.0,0.00018035,2]
[364460456,1749107441586,-430.0,0.00018035,2]
[364460458,1749107441596,-430.0,0.00018035,2]
[364460459,1749107441605,-514.57626875,0.00018035,2]
[364460462,1749107441614,-440.0,0.00018035,2]
[364460464,1749107441624,-440.0,0.00018035,2]
[364460466,1749107441633,-430.0,0.00018035,2]
[364460468,1749107441643,-440.0,0.00018035,2]
[364460470,1749107441654,-440.0,0.00018035,2]
[364460472,1749107441663,-440.0,0.00018035,2]
[364460474,1749107441673,-431.14723242,0.00018035,2]
[364460476,1749107441683,-430.0,0.00018035,2]
[364460478,1749107441693,-430.0,0.00018035,2]
[364460480,1749107441704,-440.0,0.00018035,2]
[364460482,1749107441715,-430.0,0.00018035,2]
[364460484,1749107441724,-430.0,0.00018035,2]
[364460486,1749107441733,-440.0,0.00018035,2]
[364460488,1749107441743,-440.0,0.00018035,2]
[364460489,1749107441752,-430.0,0.00018035,2]
[364460492,1749107441761,-440.0,0.00018035,2]
[364460494,1749107441771,-440.0,0.00018035,2]
[364460496,1749107441780,-430.0,0.00018035,2]
[364460497,1749107441790,-430.0,0.00018035,2]
[364460500,1749107441799,-430.0,0.00018035,2]
[364460501,1749107441810,-440.0,0.00018035,2]
[364460504,1749107441820,-430.0,0.00018035,2]
[364460506,1749107441829,-440.0,0.00018035,2]
[364460508,1749107441838,-440.0,0.00018035,2]
[364460510,1749107441848,-490.0,0.00018035,2]
[364460512,1749107441857,-430.0,0.00018035,2]
[364460514,1749107441867,-430.0,0.00018035,2]
[364460516,1749107441877,-426.95083179,0.00018035,2]
[364460518,1749107441887,-440.0,0.00018035,2]
[364460520,1749107441896,-430.0,0.00018035,2]
[364460522,1749107441905,-151.0,0.00018035,2]
[364460524,1749107441914,-151.0,0.00018035,2]
[364460526,1749107441925,-151.0,0.00018035,2]
[364460528,1749107441935,-151.0,0.00018035,2]
[364460530,1749107441944,-151.0,0.00018035,2]
[364460532,1749107441954,-500.0,0.00018095,2]
[364460534,1749107441964,-382.69,0.00018129,2]
[364460536,1749107441973,-429.62,0.00018129,2]
[364460538,1749107441982,-151.0,0.00018129,2]
[364460540,1749107441992,-174.055378,0.00018129,2]
[364460542,1749107442001,-440.0,0.00018129,2]
[364460544,1749107442011,-440.0,0.00018129,2]
[364460546,1749107442021,-543.48,0.00018129,2]
[364460548,1749107442030,-440.0,0.00018129,2]
[364460550,1749107442040,-440.0,0.00018129,2]
[364460552,1749107442050,-718.07,0.00018129,2]
[364460554,1749107442059,-773.78,0.00018131,2]
[364460557,1749107442069,-4196.22,0.00018177,2]
[364460559,1749107442079,-500.0,0.00018292,2]
[364460561,1749107442088,-773.78,0.00018306,2]
[364460563,1749107442098,-440.0,0.00018307,2]
[364460565,1749107442107,-440.0,0.00018307,2]
[364460567,1749107442117,-440.0,0.00018307,2]
[364460569,1749107442126,-440.0,0.00018307,2]
[364460571,1749107442136,-440.0,0.00018307,2]
[364460573,1749107442145,-440.0,0.00018307,2]
[364460575,1749107442155,-420.0,0.00018307,2]
[364460577,1749107442164,-440.0,0.00018307,2]
[364460579,1749107442174,-430.0,0.00018307,2]
[364460581,1749107442184,-420.0,0.00018307,2]
[364460583,1749107442194,-633.55614139,0.00018307,2]
[364460585,1749107442203,-440.0,0.00018307,2]
[364460587,1749107442212,-473.43736884,0.00018307,2]
[364460589,1749107442222,-430.0,0.00018307,2]
[364460591,1749107442231,-440.0,0.00018307,2]
[364460593,1749107442241,-440.0,0.00018307,2]
[364460595,1749107442250,-500.0,0.00018307,2]
[364460597,1749107442259,-495.72,0.00018307,2]
[364460599,1749107442268,-420.0,0.00018307,2]
[364460601,1749107442278,-440.0,0.00018307,2]
[364460603,1749107442287,-420.0,0.00018307,2]
[364460605,1749107442297,-410.0,0.00018307,2]
[364460607,1749107442306,-440.0,0.00018307,2]
[364460609,1749107442315,-424.30458172,0.00018307,2]
[364460612,1749107442325,-151.0,0.00018307,2]
[364460614,1749107442334,-151.0,0.00018307,2]
[364460616,1749107442343,-440.0,0.00018307,2]
[364460618,1749107442352,-151.0,0.00018307,2]
[364460620,1749107442362,-440.0,0.00018307,2]
[364460622,1749107442371,-440.0,0.00018307,2]
[364460624,1749107442380,-440.0,0.00018307,2]
[364460626,1749107442390,-440.0,0.00018307,2]
[364460628,1749107442399,-151.0,0.00018307,2]
[364460630,1749107442407,-440.0,0.00018307,2]
[364460632,1749107442417,-440.0,0.00018307,2]
[364460634,1749107442426,-440.0,0.00018307,2]
[364460636,1749107442437,-440.0,0.00018307,2]
[364460639,1749107442447,-440.0,0.00018307,2]
[364460641,1749107442456,-250.25388,0.00018307,2]
[364460644,1749107442465,-440.0,0.00018307,2]
[364460646,1749107442474,-250.25388,0.00018307,2]
[364460648,1749107442484,-440.0,0.00018307,2]
[364460649,1749107442493,-440.0,0.00018307,2]
[364460650,1749107442502,-151.0,0.00018307,2]
[364460651,1749107442512,-440.0,0.00018307,2]
[364460652,1749107442521,-151.0,0.00018307,2]
[364460653,1749107442531,-440.0,0.00018307,2]
[364460654,1749107442541,-440.0,0.00018307,2]
[364460655,1749107442551,-1197.13,0.00018307,2]
[364460656,1749107442560,-440.0,0.00018307,2]
[364460657,1749107442569,-420.0,0.00018307,2]
[364460658,1749107442578,-440.0,0.00018307,2]
[364460659,1749107442587,-151.0,0.00018307,2]
[364460660,1749107442596,-440.0,0.00018307,2]
[364460661,1749107442605,-489.58,0.00018307,2]
[364460663,1749107442614,-440.0,0.00018307,2]
[364460664,1749107442623,-440.0,0.00018307,2]
[364460665,1749107442633,-440.0,0.00018307,2]
[364460667,1749107442642,-440.0,0.00018307,2]
[364460669,1749107442651,-839.48,0.00018307,2]
[364460671,1749107442661,-440.0,0.00018307,2]
[364460673,1749107442671,-440.0,0.00018307,2]
[364460675,1749107442681,-420.54111973,0.00018307,2]
[364460677,1749107442690,-440.0,0.00018307,2]
[364460679,1749107442699,-440.0,0.00018307,2]
[364460681,1749107442711,-151.0,0.00018307,2]
[364460683,1749107442720,-440.0,0.00018307,2]
[364460685,1749107442729,-440.0,0.00018307,2]
[364460687,1749107442739,-440.0,0.00018307,2]
[364460689,1749107442750,-440.0,0.00018307,2]
[364460691,1749107442759,-440.0,0.00018307,2]
[364460693,1749107442769,-440.0,0.00018307,2]
[364460695,1749107442779,-420.0,0.00018307,2]
[364460697,1749107442788,-420.0,0.00018307,2]
[364460699,1749107442798,-151.0,0.00018307,2]
[364460701,1749107442807,-420.0,0.00018307,2]
[364460703,1749107442816,-415.78836152,0.00018307,2]
[364460705,1749107442825,-440.0,0.00018307,2]
[364460707,1749107442835,-410.0,0.00018307,2]
[364460710,1749107442844,-380.0,0.00018307,2]
[364460712,1749107442854,-151.0,0.00018307,2]
[364460714,1749107442863,-440.0,0.00018307,2]
[364460716,1749107442872,-440.0,0.00018307,2]
[364460718,1749107442883,-773.78,0.00018307,2]
[364460720,1749107442893,-440.0,0.00018307,2]
[364460722,1749107442903,-420.0,0.00018307,2]
[364460724,1749107442912,-424.20911019,0.00018307,2]
[364460726,1749107442922,-440.0,0.00018307,2]
[364460728,1749107442931,-440.0,0.00018307,2]
[364460730,1749107442940,-440.0,0.00018307,2]
[364460731,1749107442951,-440.0,0.00018307,2]
[364460734,1749107442961,-440.0,0.00018307,2]
[364460736,1749107442970,-440.0,0.00018307,2]
[364460737,1749107442980,-151.0,0.00018307,2]
[364460739,1749107442989,-151.0,0.00018307,2]
[364460741,1749107442999,-151.0,0.00018307,2]
[364460743,1749107443008,-438.57942235,0.00018307,2]
[364460745,1749107443017,-396.15250228,0.00018307,2]
[364460747,1749107443027,-440.0,0.00018307,2]
[364460749,1749107443036,-440.0,0.00018307,2]
[364460751,1749107443045,-773.78,0.00018308,2]
[364460753,1749107443054,-6438.07220532,0.00018309,3]
[364460755,1749107443063,-10605.60437254,0.00018309,2]
[364460757,1749107443073,-410.0,0.00018309,2]
[364460759,1749107443082,-440.0,0.00018309,2]
[364460761,1749107443093,-423.85825138,0.00018309,2]
[364460763,1749107443102,-250.65982847,0.00018309,2]
[364460765,1749107443112,-435.0,0.00018309,2]
[364460767,1749107443121,-440.0,0.00018309,2]
[364460769,1749107443130,-420.0,0.00018309,2]
[364460771,1749107443140,-420.0,0.00018309,2]
[364460773,1749107443149,-440.0,0.00018309,2]
[364460775,1749107443158,-420.0,0.00018309,2]
[364460777,1749107443168,-420.0,0.00018309,2]
[364460779,1749107443178,-330.54967705,0.00018309,2]
[364460781,1749107443188,-440.0,0.00018309,2]
[364460783,1749107443197,-440.0,0.00018309,2]
[364460785,1749107443207,-440.0,0.00018309,2]
[364460787,1749107443216,-410.0,0.00018309,2]
[364460789,1749107443226,-440.0,0.00018309,2]
[364460791,1749107443235,-435.55280609,0.00018309,2]
[364460793,1749107443244,-440.0,0.00018309,2]
[364460795,1749107443253,-440.0,0.00018309,2]
[364460797,1749107443263,-151.0,0.00018309,2]
[364460810,1749107443382,-430.0,0.00018309,2]
[364460812,1749107443393,-440.0,0.00018309,2]
[364460814,1749107443403,-430.0,0.00018309,2]
[364460816,1749107443413,-151.0,0.00018309,2]
[364460818,1749107443424,-151.0,0.00018309,2]
[364460820,1749107443433,-151.0,0.00018309,2]
[364460822,1749107443443,-151.0,0.00018309,2]
[364460824,1749107443452,-250.25388,0.00018309,2]
[364460826,1749107443462,-250.25388,0.00018309,2]
[364460828,1749107443471,-240.976976,0.00018309,2]
[364460830,1749107443481,-151.0,0.00018309,2]
[364460832,1749107443490,-151.0,0.00018309,2]
[364460834,1749107443499,-318.735,0.00018309,2]
[364460836,1749107443508,-318.735,0.00018309,2]
[364460838,1749107443518,-151.0,0.00018309,2]
[364460840,1749107443528,-151.0,0.00018309,2]
[364460843,1749107443537,-151.0,0.00018309,2]
[364460845,1749107443547,-440.0,0.00018403,2]
[364460847,1749107443556,-440.0,0.00018403,2]
[364460849,1749107443566,-543.48,0.00018403,2]
[364460851,1749107443576,-373.88,0.00018403,2]
[364460853,1749107443585,-440.0,0.00018403,2]
[364460855,1749107443595,-718.07,0.00018403,2]
[364460857,1749107443605,-440.0,0.00018581,2]
[364460859,1749107443615,-440.0,0.00018581,2]
[364460861,1749107443624,-1197.13,0.00018581,2]
[364460863,1749107443634,-507.68,0.00018581,2]
[364460866,1749107443645,-440.0,0.00018581,2]
[364460868,1749107443655,-440.0,0.00018581,2]
[364460870,1749107443665,-440.0,0.00018581,2]
[364460872,1749107443675,-839.48,0.00018581,2]
[364460873,1749107443685,-440.0,0.00018581,2]
[364460875,1749107443694,-440.0,0.00018581,2]
[364460877,1749107443705,-500.46,0.00018581,2]
[364460879,1749107443717,-440.0,0.00018581,2]
[364460881,1749107443727,-440.0,0.00018581,2]
[364460883,1749107443736,-440.0,0.00018581,2]
[364460886,1749107443748,-440.0,0.00018581,2]
[364460888,1749107443757,-380.0,0.00018581,2]
[364460890,1749107443767,-440.0,0.00018581,2]
[364460892,1749107443777,-287.0,0.00018602,2]
[364460894,1749107443787,-501.86867376,0.00018627,2]
[364460896,1749107443797,-440.0,0.00018677,2]
[364460898,1749107443806,-440.0,0.00018677,2]
[364460900,1749107443815,-543.48,0.00018677,2]
[364460902,1749107443825,-440.0,0.00018677,2]
[364460904,1749107443834,-718.07,0.00018677,2]
[364460906,1749107443844,-151.0,0.00018838,2]
[364460908,1749107443854,-151.0,0.00018838,2]
[364460910,1749107443863,-773.78,0.00018854,2]
[364460912,1749107443872,-154.615658,0.00018855,2]
[364460914,1749107443882,-151.0,0.00018855,2]
[364460916,1749107443891,-151.0,0.00018855,2]
[364460918,1749107443900,-151.0,0.00018855,2]
[364460920,1749107443909,-151.0,0.00018855,2]
[364460922,1749107443919,-151.0,0.00018855,2]
[364460924,1749107443929,-440.0,0.00018855,2]
[364460926,1749107443938,-1197.13,0.00018855,2]
[364460928,1749107443947,-440.0,0.00018855,2]
[364460930,1749107443957,-839.48,0.00018855,2]
[364460932,1749107443966,-163.62,0.00018855,2]
[364460934,1749107443975,-440.0,0.00018855,2]
[364460936,1749107443985,-229.4,0.00018855,2]
[364460938,1749107443994,-440.0,0.00018855,2]
[364460940,1749107444003,-440.0,0.00018855,2]
[364460942,1749107444012,-151.0,0.000189,2]
[364460944,1749107444022,-151.0,0.000189,2]
[364460946,1749107444031,-291.49548,0.000189,2]
[364460948,1749107444041,-966.46144427,0.000189,2]
[364460950,1749107444051,-1274.11533208,0.00018926,2]
[364460953,1749107444060,-440.0,0.00018951,2]
[364460955,1749107444070,-440.0,0.00018951,2]
[364460957,1749107444080,-543.48,0.00018951,2]
[364460959,1749107444089,-440.0,0.00018951,2]
[364460961,1749107444099,-718.07,0.00018951,2]
[364460963,1749107444108,-168.35077933,0.00018987,2]
[364460965,1749107444118,-1000.0,0.00019,19]
[364460967,1749107444127,-151.0,0.00019,2]
[364460968,1749107444136,-151.0,0.00019061,2]
[364460970,1749107444146,-151.0,0.00019061,2]
[364460972,1749107444155,-151.0,0.00019061,2]
[364460974,1749107444165,-151.0,0.00019061,2]
[364460976,1749107444175,-151.0,0.00019061,2]
[364460979,1749107444185,-151.0,0.00019061,2]
[364460981,1749107444195,-151.0,0.00019061,2]
[364460983,1749107444204,-152.040399,0.00019061,2]
[364460984,1749107444214,-966.46144427,0.00019107,2]
[364460986,1749107444223,-440.0,0.00019129,2]
[364460988,1749107444233,-1197.13,0.00019129,2]
[364460991,1749107444243,-440.0,0.00019129,2]
[364460992,1749107444252,-839.48,0.00019129,2]
[364460994,1749107444263,-440.0,0.00019129,2]
[364460997,1749107444273,-440.0,0.00019129,2]
[364460999,1749107444283,-440.0,0.00019129,2]
[364461001,1749107444293,-151.0,0.00019131,2]
[364461003,1749107444303,-318.735,0.00019131,2]
[364461005,1749107444312,-318.735,0.00019131,2]
[364461006,1749107444320,-440.0,0.00019178,2]
[364461008,1749107444329,-440.0,0.00019178,2]
[364461010,1749107444338,-95.17711405,0.00019178,2]
[364461021,1749107444430,-420.0,0.00018307,2]
[364461023,1749107444441,-344.82288595,0.00019178,2]
[364461025,1749107444451,-440.0,0.00019178,2]
[364461027,1749107444460,-440.0,0.00019178,2]
[364461029,1749107444470,-183.793305,0.00019178,2]
[364461031,1749107444480,-440.0,0.00019225,2]
[364461033,1749107444489,-440.0,0.00019225,2]
[364461035,1749107444498,-543.48,0.00019225,2]
[364461037,1749107444506,-440.0,0.00019225,2]
[364461039,1749107444514,-718.07,0.00019225,2]
[364461041,1749107444522,-966.46144427,0.00019314,2]
[364461043,1749107444529,-25559.03518315,0.00019329,2]
[364461045,1749107444539,-773.78,0.00019402,2]
[364461047,1749107444549,-151.0,0.00019402,2]
[364461049,1749107444558,-151.0,0.00019402,2]
[364461051,1749107444567,-440.0,0.00019403,2]
[364461053,1749107444576,-1197.13,0.00019403,2]
[364461055,1749107444586,-440.0,0.00019403,2]
[364461057,1749107444595,-839.48,0.00019403,2]
[364461059,1749107444604,-440.0,0.00019403,2]
[364461061,1749107444614,-440.0,0.00019403,2]
[364461064,1749107444623,-440.0,0.00019403,2]
[364461066,1749107444633,-440.0,0.00019403,2]
[364461067,1749107444642,-151.0,0.00019404,2]
[364461069,1749107444652,-440.0,0.00019499,2]
[364461071,1749107444662,-440.0,0.00019499,2]
[364461074,1749107444673,-543.48,0.00019499,2]
[364461076,1749107444682,-440.0,0.00019499,2]
[364461077,1749107444693,-718.07,0.00019499,2]
[364461080,1749107444704,-966.46144427,0.00019521,2]
[364461082,1749107444718,-151.0,0.00019521,2]
[364461083,1749107444728,-3760.6,0.00019598,2]
[364461086,1749107444739,-151.0,0.00019598,2]
[364461088,1749107444749,-151.0,0.00019598,2]
[364461089,1749107444759,-250.25388,0.00019598,2]
[364461091,1749107444767,-250.25388,0.00019598,2]
[364461093,1749107444777,-151.0,0.00019598,2]
[364461095,1749107444789,-151.0,0.00019643,2]
[364461097,1749107444799,-151.0,0.00019643,2]
[364461099,1749107444810,-151.0,0.00019643,2]
[364461101,1749107444819,-1197.13,0.00019677,2]
[364461103,1749107444827,-440.0,0.00019677,2]
[364461105,1749107444837,-839.48,0.00019677,2]
[364461107,1749107444847,-440.0,0.00019677,2]
[364461109,1749107444858,-440.0,0.00019677,2]
[364461110,1749107444868,-440.0,0.00019677,2]
[364461111,1749107444878,-440.0,0.00019677,2]
[364461112,1749107444888,-151.0,0.00019678,2]
[364461113,1749107444899,-151.0,0.00019678,2]
[364461114,1749107444909,-151.0,0.00019678,2]
[364461115,1749107444919,-151.0,0.00019678,2]
[364461116,1749107444929,-151.0,0.00019678,2]
[364461117,1749107444938,-151.0,0.00019679,2]
[364461118,1749107444947,-225.914721,0.00019679,2]
[364461119,1749107444962,-6294.33,0.00019691,2]
[364461120,1749107444972,-966.46144427,0.00019728,2]
[364461121,1749107444981,-440.0,0.00019773,2]
[364461122,1749107444991,-440.0,0.00019773,2]
[364461123,1749107445001,-543.48,0.00019773,2]
[364461124,1749107445011,-440.0,0.00019773,2]
[364461125,1749107445022,-718.07,0.00019773,2]
[364461126,1749107445031,-773.78,0.00019779,2]
[364461127,1749107445041,-227.521,0.00019853,2]
[364461128,1749107445051,-500.0,0.00019867,2]
[364461129,1749107445061,-500.0,0.00019867,2]
[364461130,1749107445071,-207.4,0.00019867,2]
[364461131,1749107445081,-500.0,0.00019867,2]
[364461132,1749107445094,-500.0,0.00019867,2]
[364461133,1749107445105,-500.0,0.00019867,2]
[364461135,1749107445115,-500.0,0.00019867,2]
[364461136,1749107445124,-500.0,0.00019867,2]
[364461137,1749107445133,-500.0,0.00019867,2]
[364461139,1749107445143,-500.0,0.00019867,2]
[364461141,1749107445152,-500.0,0.00019867,2]
[364461143,1749107445161,-500.0,0.00019867,2]
[364461145,1749107445171,-500.0,0.00019867,2]
[364461147,1749107445181,-500.0,0.00019867,2]
[364461149,1749107445190,-1274.11533208,0.00019918,2]
[364461151,1749107445200,-966.46144427,0.00019934,2]
[364461153,1749107445210,-1197.13,0.00019951,2]
[364461155,1749107445220,-440.0,0.00019951,2]
[364461157,1749107445230,-839.48,0.00019951,2]
[364461159,1749107445239,-362.63,0.00019951,2]
[364461161,1749107445250,-440.0,0.00019951,2]
[364461163,1749107445261,-173.56,0.00019951,2]
[364461165,1749107445271,-440.0,0.00019951,2]
[364461170,1749107445309,-1000.0,0.0002,20]
[364461172,1749107445318,-168.35077933,0.00020014,2]
[364461174,1749107445328,-440.0,0.00020047,2]
[364461177,1749107445338,-440.0,0.00020047,2]
[364461179,1749107445347,-262.59368,0.00020047,2]
[364461182,1749107445356,-151.0,0.00020047,2]
[364461183,1749107445366,-543.48,0.00020047,2]
[364461185,1749107445375,-440.0,0.00020047,2]
[364461187,1749107445384,-718.07,0.00020047,2]
[364461189,1749107445394,-773.78,0.00020071,2]
[364461191,1749107445404,-151.0,0.00020072,2]
[364461193,1749107445413,-151.0,0.00020072,2]
[364461195,1749107445425,-194.384065,0.00020072,2]
[364461197,1749107445434,-151.0,0.00020072,2]
[364461199,1749107445443,-151.0,0.00020072,2]
[364461201,1749107445453,-151.0,0.00020072,2]
[364461203,1749107445462,-151.0,0.00020072,2]
[364461205,1749107445472,-3000.0,0.000201,2]
[364461207,1749107445481,-161.0182729,0.0002011,2]
[364461209,1749107445491,-3000.0,0.0002011,2]
[364461211,1749107445501,-151.0,0.0002011,2]
[364461213,1749107445511,-318.735,0.0002011,2]
[364461215,1749107445521,-318.735,0.0002011,2]
[364461217,1749107445530,-3000.0,0.0002012,2]
[364461219,1749107445539,-151.0,0.0002012,2]
[364461221,1749107445549,-3000.0,0.0002013,2]
[364461223,1749107445558,-3000.0,0.0002014,2]
[364461225,1749107445567,-151.0,0.0002014,2]
[364461227,1749107445577,-151.0,0.0002014,2]
[364461229,1749107445587,-151.0,0.0002014,2]
[364461231,1749107445596,-250.25388,0.0002014,2]
[364461233,1749107445605,-250.25388,0.0002014,2]
[364461235,1749107445615,-151.0,0.0002014,2]
[364461236,1749107445624,-151.0,0.0002014,2]
[364461238,1749107445633,-151.0,0.0002014,2]
[364461240,1749107445643,-966.46144427,0.00020141,2]
[364461242,1749107445653,-773.78,0.00020149,2]
[364461244,1749107445662,-3000.0,0.0002015,2]
[364461246,1749107445673,-773.78,0.00020159,2]
[364461248,1749107445682,-4504.130147,0.0002016,2]
[364461250,1749107445691,-151.0,0.0002016,2]